bitfinex/quotes_BTCUSD_20250830
["timestamp","ask_amount","ask_price","bid_price","bid_amount"]
[1756576509499,0.37753533,108920.0,108910.0,0.49873432]
[1756576509706,0.030729,108920.0,108910.0,0.49873432]
[1756576509930,0.37547533,108920.0,108910.0,0.49873432]
[1756576510560,0.37235533,108920.0,108910.0,0.49873432]
[1756576510762,0.032789,108920.0,108910.0,0.49869432]
[1756576510974,0.37235533,108920.0,108910.0,0.49869432]
[1756576511606,0.027609,108920.0,108910.0,0.49869432]
[1756576511808,0.37547533,108920.0,108910.0,0.49869432]
[1756576515353,0.37753533,108920.0,108910.0,0.49869432]
[1756576515784,0.030729,108920.0,108910.0,0.49869432]
[1756576516011,0.37547533,108920.0,108910.0,0.49869432]
[1756576517488,0.37753533,108920.0,108910.0,0.49869432]
[1756576520335,0.027609,108920.0,108910.0,0.84344065]
[1756576523652,0.027609,108920.0,108910.0,0.34457432]
[1756576523852,0.027609,108920.0,108910.0,0.84344065]
[1756576525936,0.027609,108920.0,108910.0,0.68932065]
[1756576526147,0.027609,108920.0,108910.0,0.84344065]
[1756576532473,0.00317,108930.0,108920.0,0.20455982]
[1756576532667,0.5500193,108940.0,108930.0,0.18360414]
[1756576532869,0.55651556,108940.0,108930.0,0.43070415]
[1756576533129,0.90343189,108940.0,108930.0,0.43070415]
[1756576533277,0.93420789,108940.0,108930.0,0.43070415]
[1756576538461,0.93421108,108940.0,108930.0,0.43070415]
[1756576539390,0.93421245,108940.0,108930.0,0.43070415]
[1756576541771,0.93421245,108940.0,108930.0,0.27658415]
[1756576541981,0.40587678,108940.0,108930.0,0.43070415]
[1756576542413,0.40587678,108940.0,108930.0,0.77545048]
[1756576543634,0.40587678,108940.0,108930.0,0.77541048]
[1756576544639,0.40587678,108940.0,108930.0,0.7963493]
[1756576544640,0.39019318,108940.0,108930.0,0.7963493]
[1756576544844,0.38802368,108940.0,108930.0,0.7963493]
[1756576545418,0.38802368,108940.0,108930.0,0.7973493]
[1756576545613,0.38802067,108940.0,108930.0,0.6442693]
[1756576545872,0.38485067,108940.0,108930.0,0.7973493]
[1756576546081,0.38485067,108940.0,108930.0,0.7983493]
[1756576546359,0.38485067,108940.0,108930.0,0.6432693]
[1756576546528,0.38485067,108940.0,108930.0,0.7973493]
[1756576546678,0.38802067,108940.0,108930.0,0.8003493]
[1756576546882,0.38802067,108940.0,108930.0,0.7993493]
[1756576547265,0.38802067,108940.0,108930.0,0.8013493]
[1756576549101,0.37082354,108940.0,108930.0,0.8013493]
[1756576549323,0.38801555,108940.0,108930.0,0.8013493]
[1756576549758,0.38801432,108940.0,108930.0,0.8013493]
[1756576550119,0.3880144,108940.0,108930.0,0.8013493]
[1756576551689,0.3899944,108940.0,108930.0,0.6472693]
[1756576551928,0.3899944,108940.0,108930.0,0.8013493]
[1756576553219,0.3899944,108940.0,108930.0,0.6472693]
[1756576553430,0.3899944,108940.0,108930.0,0.8013493]
[1756576553829,0.3880144,108940.0,108930.0,0.8013493]
[1756576554423,0.3899944,108940.0,108930.0,0.8013493]
[1756576555256,0.3899944,108940.0,108930.0,0.6472693]
[1756576555406,0.3899944,108940.0,108930.0,0.8013493]
[1756576556456,0.0480144,108940.0,108930.0,0.8013493]
[1756576556669,0.02765354,108940.0,108930.0,0.8013493]
[1756576557073,0.03066354,108940.0,108930.0,0.8013493]
[1756576557620,0.03264354,108940.0,108930.0,0.8013493]
[1756576559011,0.03264354,108940.0,108930.0,0.30252297]
[1756576559250,0.03264354,108940.0,108930.0,0.45656297]
[1756576559439,0.03264354,108940.0,108930.0,0.8013093]
[1756576559762,0.03264354,108940.0,108930.0,0.7983093]
[1756576559966,0.03264354,108940.0,108930.0,0.7963093]
[1756576560222,0.03264354,108940.0,108930.0,0.7983093]
[1756576560586,0.03264354,108940.0,108930.0,0.6442693]
[1756576560968,0.03264354,108940.0,108930.0,0.7973093]
[1756576561623,0.03264354,108940.0,108930.0,0.7963093]
[1756576561883,0.03264354,108940.0,108930.0,0.7993093]
[1756576562104,0.03264354,108940.0,108930.0,0.81404121]
[1756576562324,0.03264354,108940.0,108930.0,0.8013093]
[1756576564513,0.02765354,108940.0,108930.0,0.8013093]
[1756576564894,0.03066354,108940.0,108930.0,0.8013093]
[1756576566532,0.03264354,108940.0,108930.0,0.45656297]
[1756576566735,0.03264354,108940.0,108930.0,0.8013093]
[1756576568525,0.03066354,108940.0,108930.0,0.8013093]
[1756576570965,0.03264354,108940.0,108930.0,0.8013093]
[1756576572468,0.03066354,108940.0,108930.0,0.8013093]
[1756576573950,0.03264354,108940.0,108930.0,0.8013093]
[1756576575277,0.03264354,108940.0,108930.0,0.8012693]
[1756576575492,0.03264354,108940.0,108930.0,0.6472693]
[1756576575699,0.03264354,108940.0,108930.0,0.8012693]
[1756576576333,0.03264354,108940.0,108930.0,0.45652297]
[1756576576522,0.03264354,108940.0,108930.0,0.8012693]
[1756576576894,0.03264354,108940.0,108930.0,0.6472693]
[1756576577093,0.02765354,108940.0,108930.0,0.8012693]
[1756576577299,0.03066354,108940.0,108930.0,0.8012693]
[1756576577523,0.03264354,108940.0,108930.0,0.8012693]
[1756576581074,0.02765354,108940.0,108930.0,0.8012693]
[1756576581287,0.02765354,108940.0,108930.0,1.14601563]
[1756576581501,4.754e-05,108940.0,108930.0,1.14601563]
[1756576582353,4.754e-05,108940.0,108930.0,0.8012693]
[1756576593456,4.754e-05,108940.0,108930.0,1.14601563]
[1756576593663,4.754e-05,108940.0,108930.0,1.17361463]
[1756576596270,4.754e-05,108940.0,108930.0,1.17361463]
[1756576598363,4.754e-05,108940.0,108930.0,1.17357463]
[1756576598582,0.00325754,108940.0,108930.0,1.17357463]
[1756576599235,4.754e-05,108940.0,108930.0,1.43617463]
[1756576600587,4.754e-05,108940.0,108930.0,1.48617463]
[1756576600790,4.754e-05,108940.0,108930.0,1.55231567]
[1756576601605,4.754e-05,108940.0,108930.0,1.54731567]
[1756576601912,4.754e-05,108940.0,108930.0,1.55231567]
[1756576602311,4.754e-05,108940.0,108930.0,1.55031567]
[1756576602745,4.754e-05,108940.0,108930.0,1.55431567]
[1756576602914,4.754e-05,108940.0,108930.0,1.55131567]
[1756576603327,4.754e-05,108940.0,108930.0,1.55531567]
[1756576605028,4.754e-05,108940.0,108930.0,1.29271567]
[1756576610920,4.754e-05,108940.0,108930.0,1.55531567]
[1756576612746,4.754e-05,108940.0,108930.0,1.57372567]
[1756576612953,4.754e-05,108940.0,108930.0,1.55531567]
[1756576623070,0.00319754,108940.0,108930.0,1.55531567]
[1756576626369,0.00531754,108940.0,108930.0,1.40135567]
[1756576626575,0.00531754,108940.0,108930.0,1.21156934]
[1756576628060,0.00531754,108940.0,108930.0,1.21152934]
[1756576632838,0.00531754,108940.0,108930.0,0.86678301]
[1756576633141,0.00531754,108940.0,108930.0,1.21152934]
[1756576633908,0.00531754,108940.0,108930.0,1.05660934]
[1756576634110,0.00531754,108940.0,108930.0,1.21144934]
[1756576639931,0.00531754,108940.0,108930.0,1.43208934]
[1756576644792,0.00319754,108940.0,108930.0,1.50268934]
[1756576645482,0.00319754,108940.0,108930.0,1.84743567]
[1756576652033,4.754e-05,108940.0,108930.0,1.58483567]
[1756576652434,0.00299754,108940.0,108930.0,1.58483567]
[1756576652950,0.00299754,108940.0,108930.0,1.60323567]
[1756576653159,0.00299754,108940.0,108930.0,1.58483567]
[1756576655665,0.00503754,108940.0,108930.0,1.58483567]
[1756576660393,0.00299754,108940.0,108930.0,1.58483567]
[1756576661545,0.00299754,108940.0,108930.0,1.84743567]
[1756576664465,4.754e-05,108940.0,108930.0,1.84743567]
[1756576665077,4.754e-05,108940.0,108930.0,1.78129463]
[1756576665268,4.754e-05,108940.0,108930.0,1.84747802]
[1756576665465,4.754e-05,108940.0,108930.0,1.78129463]
[1756576667208,4.754e-05,108940.0,108930.0,1.84747147]
[1756576668519,4.754e-05,108940.0,108930.0,1.78129463]
[1756576673708,0.00323754,108940.0,108930.0,1.78129463]
[1756576674656,0.00323754,108940.0,108930.0,1.86373937]
[1756576674855,0.00323754,108940.0,108930.0,1.78129463]
[1756576683313,0.00323754,108940.0,108930.0,1.79969463]
[1756576683517,0.00323754,108940.0,108930.0,1.78129463]
[1756576684017,0.00323754,108940.0,108930.0,1.73129463]
[1756576684174,0.00323754,108940.0,108930.0,1.73057463]
[1756576684372,0.00525754,108940.0,108930.0,1.79673271]
[1756576687391,0.00525754,108940.0,108930.0,0.95312005]
[1756576687556,0.00525754,108940.0,108930.0,1.79673271]
[1756576691429,0.00525754,108940.0,108930.0,1.64261271]
[1756576691610,0.00525754,108940.0,108930.0,1.79673271]
[1756576692028,0.00525754,108940.0,108930.0,1.73057463]
[1756576692744,0.00323754,108940.0,108930.0,1.73057463]
[1756576698705,4.754e-05,108940.0,108930.0,1.73057463]
[1756576700267,0.00305754,108940.0,108930.0,1.73057463]
[1756576700812,4.754e-05,108940.0,108930.0,1.78057463]
[1756576707641,0.00305754,108940.0,108930.0,1.78057463]
[1756576711938,0.00514754,108940.0,108930.0,1.78053463]
[1756576713990,0.00514754,108940.0,108930.0,1.62645463]
[1756576714295,0.00514754,108940.0,108930.0,1.78053463]
[1756576715300,0.00514754,108940.0,108930.0,1.62645463]
[1756576715448,0.00514754,108940.0,108930.0,1.78053463]
[1756576721591,0.00305754,108940.0,108930.0,1.78053463]
[1756576721814,0.00514754,108940.0,108930.0,1.78053463]
[1756576723327,0.00305754,108940.0,108930.0,1.78053463]
[1756576723481,4.754e-05,108940.0,108930.0,1.78053463]
[1756576723944,0.00305754,108940.0,108930.0,1.86297937]
[1756576726319,4.754e-05,108940.0,108930.0,2.20297937]
[1756576726532,0.00301,108950.0,108940.0,0.20452611]
[1756576726735,0.00301,108950.0,108940.0,1.20722439]
[1756576727063,0.0051,108950.0,108940.0,1.23482039]
[1756576728067,0.0051,108950.0,108940.0,1.23782039]
[1756576729004,0.0051,108950.0,108940.0,1.24082039]
[1756576729404,0.0051,108950.0,108940.0,1.28314907]
[1756576729580,0.0051,108950.0,108940.0,1.54574907]
[1756576737233,0.0051,108950.0,108940.0,1.39170907]
[1756576737521,0.0051,108950.0,108940.0,1.54574907]
[1756576737833,0.0051,108950.0,108940.0,1.39170907]
[1756576738039,0.0051,108950.0,108940.0,1.54574907]
[1756576745070,0.0051,108950.0,108940.0,1.54570907]
[1756576745612,0.0051,108950.0,108940.0,1.39170907]
[1756576745813,0.0051,108950.0,108940.0,1.54570907]
[1756576754230,0.0051,108950.0,108940.0,1.61630907]
[1756576756214,0.0051,108950.0,108940.0,1.27156274]
[1756576759023,0.0051,108950.0,108940.0,1.49216274]
[1756576761704,0.0051,108950.0,108940.0,1.14741641]
[1756576762099,0.0051,108950.0,108940.0,1.49216274]
[1756576765421,0.0051,108950.0,108940.0,1.57430907]
[1756576765980,0.0051,108950.0,108940.0,0.88481641]
[1756576766181,0.0051,108950.0,108940.0,1.57430907]
[1756576766770,0.0051,108950.0,108940.0,0.88481641]
[1756576766984,0.0051,108950.0,108940.0,1.57430907]
[1756576768219,0.00301,108950.0,108940.0,1.57430907]
[1756576778076,0.027595,108960.0,108950.0,0.18357044]
[1756576778277,0.68801382,108980.0,108970.0,0.20447557]
[1756576778481,0.70478212,108980.0,108970.0,0.52197558]
[1756576778683,0.73237612,108980.0,108970.0,0.52197558]
[1756576778889,0.73556612,108980.0,108970.0,0.52197558]
[1756576779627,0.73656612,108980.0,108970.0,0.52197558]
[1756576781025,0.73656416,108980.0,108970.0,0.52197558]
[1756576782528,0.71936709,108980.0,108970.0,0.52197558]
[1756576783251,0.03462076,108980.0,108970.0,0.52197558]
[1756576783451,0.03462076,108980.0,108970.0,0.86672191]
[1756576783874,0.03462076,108980.0,108970.0,0.71280191]
[1756576784136,0.03462076,108980.0,108970.0,0.86668191]
[1756576784336,0.03462076,108980.0,108970.0,0.71280191]
[1756576784535,0.03362076,108980.0,108970.0,0.52193558]
[1756576784729,0.03362076,108980.0,108970.0,0.36805558]
[1756576784935,0.03362076,108980.0,108970.0,0.52193558]
[1756576785330,0.03362076,108980.0,108970.0,0.52293558]
[1756576785736,0.03362076,108980.0,108970.0,0.36905558]
[1756576785945,0.03362076,108980.0,108970.0,0.52293558]
[1756576786456,0.37836709,108980.0,108970.0,0.52293558]
[1756576786913,0.37836709,108980.0,108970.0,0.52493558]
[1756576787321,0.37836709,108980.0,108970.0,0.37105558]
[1756576787493,0.72311342,108980.0,108970.0,0.52493558]
[1756576788037,0.37836709,108980.0,108970.0,0.52493558]
[1756576800264,0.37836709,108980.0,108970.0,0.37105558]
[1756576800526,0.72311342,108980.0,108970.0,0.52489558]
[1756576800942,0.03362076,108980.0,108970.0,0.52489558]
[1756576801247,0.38123458,108980.0,108970.0,0.52489558]
[1756576801449,0.37836709,108980.0,108970.0,0.52489558]
[1756576801797,0.37321709,108980.0,108970.0,0.52489558]
[1756576802409,0.37627709,108980.0,108970.0,0.52489558]
[1756576803116,0.03153076,108980.0,108970.0,0.52489558]
[1756576803344,0.37627709,108980.0,108970.0,0.52489558]
[1756576803559,0.37830709,108980.0,108970.0,0.52489558]
[1756576805034,0.03356076,108980.0,108970.0,0.52489558]
[1756576805244,0.37627709,108980.0,108970.0,0.52489558]
[1756576805908,0.37830709,108980.0,108970.0,0.52489558]
[1756576806112,0.03356076,108980.0,108970.0,0.37105558]
[1756576806360,0.38117458,108980.0,108970.0,0.52521558]
[1756576806557,0.37830709,108980.0,108970.0,0.52525558]
[1756576809933,0.03356076,108980.0,108970.0,0.52525558]
[1756576810220,0.37830709,108980.0,108970.0,0.52525558]
[1756576813528,0.37830709,108980.0,108970.0,0.52517558]
[1756576816459,0.37830709,108980.0,108970.0,0.52513558]
[1756576819350,0.03356076,108980.0,108970.0,0.52513558]
[1756576819604,0.37830709,108980.0,108970.0,0.52513558]
[1756576820254,0.02847076,108980.0,108970.0,0.52513558]
[1756576820433,0.02847076,108980.0,108970.0,0.86988191]
[1756576826952,0.02847076,108980.0,108970.0,0.52513558]
[1756576827127,0.02847076,108980.0,108970.0,0.86988191]
[1756576828491,0.02847076,108980.0,108970.0,0.52513558]
[1756576828700,0.00087676,108980.0,108970.0,0.86988191]
[1756576828917,0.00087676,108980.0,108970.0,0.89747091]
[1756576830006,0.00087676,108980.0,108970.0,0.74339091]
[1756576830214,0.00087676,108980.0,108970.0,0.89747091]
[1756576835223,0.00087676,108980.0,108970.0,0.89735091]
[1756576835882,0.00087676,108980.0,108970.0,0.74339091]
[1756576836097,0.00087676,108980.0,108970.0,0.89735091]
[1756576839819,0.00087676,108980.0,108970.0,0.74339091]
[1756576840067,0.00087676,108980.0,108970.0,0.89731091]
[1756576841654,0.00087676,108980.0,108970.0,0.55256458]
[1756576841873,0.00087676,108980.0,108970.0,0.89731091]
[1756576844569,0.00087676,108980.0,108970.0,0.74339091]
[1756576844812,0.00087676,108980.0,108970.0,0.89723091]
[1756576845023,0.00394676,108980.0,108970.0,0.89723091]
[1756576845258,0.00394676,108980.0,108970.0,0.55248458]
[1756576845457,0.00394676,108980.0,108970.0,0.89723091]
[1756576846677,0.00394676,108980.0,108970.0,0.39864458]
[1756576846888,0.00394676,108980.0,108970.0,0.89723091]
[1756576851947,0.00087676,108980.0,108970.0,0.96341652]
[1756576852848,0.00087676,108980.0,108970.0,1.18397652]
[1756576854288,0.00605676,108980.0,108970.0,1.18397652]
[1756576856968,0.00409676,108980.0,108970.0,1.18397652]
[1756576860190,0.00087676,108980.0,108970.0,1.18397652]
[1756576860415,0.00087676,108980.0,108970.0,0.83923019]
[1756576860613,0.00087676,108980.0,108970.0,1.18397652]
[1756576861033,0.00605676,108980.0,108970.0,1.03013652]
[1756576861240,0.00605676,108980.0,108970.0,1.18397652]
[1756576864066,0.00605676,108980.0,108970.0,0.69454417]
[1756576864275,0.00605676,108980.0,108970.0,1.1931305]
[1756576864479,0.00605676,108980.0,108970.0,1.18397652]
[1756576865054,0.00605676,108980.0,108970.0,1.1930117]
[1756576865206,0.00605676,108980.0,108970.0,1.03013652]
[1756576865414,0.00605676,108980.0,108970.0,1.18397652]
[1756576865988,0.00605676,108980.0,108970.0,0.83923019]
[1756576866205,0.35080309,108980.0,108970.0,0.83923019]
[1756576866391,0.35080309,108980.0,108970.0,0.74545558]
[1756576867227,0.35080309,108980.0,108970.0,0.37105558]
[1756576867498,0.35080309,108980.0,108970.0,0.52489558]
[1756576869809,0.35080309,108980.0,108970.0,0.37105558]
[1756576870020,0.69554942,108980.0,108970.0,0.50395676]
[1756576870230,0.87906933,108980.0,108970.0,0.35011676]
[1756576870451,0.87906933,108980.0,108970.0,0.52489558]
[1756576870662,0.69554942,108980.0,108970.0,0.50395676]
[1756576870868,0.72314142,108980.0,108970.0,0.52489558]
[1756576871508,0.03364876,108980.0,108970.0,0.52489558]
[1756576871733,0.03651625,108980.0,108970.0,0.52489558]
[1756576871946,0.72600891,108980.0,108970.0,0.52489558]
[1756576872163,0.72314142,108980.0,108970.0,0.52489558]
[1756576872395,0.37839509,108980.0,108970.0,0.52489558]
[1756576874188,0.72314142,108980.0,108970.0,0.52489558]
[1756576874592,0.37839509,108980.0,108970.0,0.52489558]
[1756576882436,0.38782815,108980.0,108970.0,0.52489558]
[1756576888252,0.04308182,108980.0,108970.0,0.52489558]
[1756576888456,0.39069564,108980.0,108970.0,0.52489558]
[1756576888633,0.38782815,108980.0,108970.0,0.52489558]
[1756576889046,0.04308182,108980.0,108970.0,0.52489558]
[1756576889251,0.39069564,108980.0,108970.0,0.52489558]
[1756576889482,0.38782815,108980.0,108970.0,0.52489558]
[1756576889660,0.73257448,108980.0,108970.0,0.52489558]
[1756576892251,0.04308182,108980.0,108970.0,0.52489558]
[1756576892448,0.73544197,108980.0,108970.0,0.52489558]
[1756576892653,0.73257448,108980.0,108970.0,0.52489558]
[1756576894659,0.04308182,108980.0,108970.0,0.52489558]
[1756576894872,0.39069564,108980.0,108970.0,0.52489558]
[1756576895128,0.38782815,108980.0,108970.0,0.52489558]
[1756576898592,0.37839509,108980.0,108970.0,0.52489558]
[1756576898790,0.38739534,108980.0,108970.0,0.52489558]
[1756576900012,0.37839509,108980.0,108970.0,0.52489558]
[1756576900775,0.04296485,108980.0,108970.0,0.52489558]
[1756576900971,0.39057867,108980.0,108970.0,0.52489558]
[1756576901174,0.38771118,108980.0,108970.0,0.37105558]
[1756576901366,0.73245751,108980.0,108970.0,0.52489558]
[1756576902408,0.72314142,108980.0,108970.0,0.52289558]
[1756576902836,0.73256436,108980.0,108970.0,0.52389558]
[1756576903190,0.38781803,108980.0,108970.0,0.52289558]
[1756576904003,0.38781803,108980.0,108970.0,0.52489558]
[1756576905264,0.37839509,108980.0,108970.0,0.52489558]
[1756576905840,0.38775724,108980.0,108970.0,0.52489558]
[1756576906444,0.03364876,108980.0,108970.0,0.52489558]
[1756576906655,0.38126258,108980.0,108970.0,0.52489558]
[1756576906860,0.37839509,108980.0,108970.0,0.52489558]
[1756576914440,0.03364876,108980.0,108970.0,0.52489558]
[1756576914636,0.38126258,108980.0,108970.0,0.52489558]
[1756576914843,0.37839509,108980.0,108970.0,0.52489558]
[1756576928671,0.37839509,108980.0,108970.0,0.35011676]
[1756576928824,0.37839509,108980.0,108970.0,0.50407676]
[1756576935873,0.37321509,108980.0,108970.0,0.50407676]
[1756576937225,0.37621509,108980.0,108970.0,0.50407676]
[1756576938097,0.03146876,108980.0,108970.0,0.50407676]
[1756576938307,0.37621509,108980.0,108970.0,0.50407676]
[1756576940095,0.02846876,108980.0,108970.0,0.50407676]
[1756576940328,0.02846876,108980.0,108970.0,0.86976191]
[1756576943336,0.00087676,108980.0,108970.0,0.86976191]
[1756576945242,0.00087676,108980.0,108970.0,0.71580191]
[1756576945465,0.00087676,108980.0,108970.0,0.86964191]
[1756576945874,0.00087676,108980.0,108970.0,0.71580191]
[1756576946082,0.00087676,108980.0,108970.0,0.86964191]
[1756576946323,0.00087676,108980.0,108970.0,0.52489558]
[1756576946981,0.00087676,108980.0,108970.0,0.37105558]
[1756576947188,0.00087676,108980.0,108970.0,0.52489558]
[1756576958795,0.00087676,108980.0,108970.0,0.86964191]
[1756576960823,0.00087676,108980.0,108970.0,0.93582752]
[1756576961321,0.00087676,108980.0,108970.0,0.96341352]
[1756576961540,0.00087676,108980.0,108970.0,0.96141352]
[1756576961687,0.00087676,108980.0,108970.0,0.96041352]
[1756576961886,0.00087676,108980.0,108970.0,0.96241352]
[1756576962102,0.00087676,108980.0,108970.0,0.96641352]
[1756576962326,0.00087676,108980.0,108970.0,0.96441352]
[1756576962774,0.00087676,108980.0,108970.0,0.96841352]
[1756576970195,0.00087676,108980.0,108970.0,1.18897352]
[1756576974156,0.00087676,108980.0,108970.0,0.84422719]
[1756576974570,0.00087676,108980.0,108970.0,1.18897352]
[1756576974925,0.00383676,108980.0,108970.0,1.18897352]
[1756576975148,0.00383676,108980.0,108970.0,1.03513352]
[1756576975343,0.00383676,108980.0,108970.0,1.18893352]
[1756576975768,0.00583676,108980.0,108970.0,1.18893352]
[1756576976008,0.00583676,108980.0,108970.0,1.03513352]
[1756576976208,0.00583676,108980.0,108970.0,1.18893352]
[1756576980411,0.00583676,108980.0,108970.0,0.84418719]
[1756576980614,0.00583676,108980.0,108970.0,1.18893352]
[1756576984770,0.00583676,108980.0,108970.0,0.69038719]
[1756576984771,0.35058309,108980.0,108970.0,0.69038719]
[1756576984980,0.35058309,108980.0,108970.0,0.81660119]
[1756576985590,0.00583676,108980.0,108970.0,0.81660119]
[1756576985786,0.00583676,108980.0,108970.0,1.16134752]
[1756576985987,0.00087676,108980.0,108970.0,1.16134752]
[1756576986764,0.00087676,108980.0,108970.0,1.18893352]
[1756576986971,0.00583676,108980.0,108970.0,1.18893352]
[1756576987972,0.00583676,108980.0,108970.0,0.84418719]
[1756576988180,0.00583676,108980.0,108970.0,1.18893352]
[1756576989225,0.00383676,108980.0,108970.0,1.18893352]
[1756576990972,0.00087676,108980.0,108970.0,1.18893352]
[1756576991283,0.00383676,108980.0,108970.0,1.18893352]
[1756576993507,0.00383676,108980.0,108970.0,0.84418719]
[1756576993846,0.00383676,108980.0,108970.0,1.18893352]
[1756576998532,0.00583676,108980.0,108970.0,0.84418719]
[1756576998732,0.00583676,108980.0,108970.0,1.18893352]
[1756577001353,0.00383676,108980.0,108970.0,1.18893352]
[1756577002745,0.00383676,108980.0,108970.0,0.84418719]
[1756577002964,0.00586676,108980.0,108970.0,1.18893352]
[1756577003720,0.00383676,108980.0,108970.0,1.18893352]
[1756577005612,0.34071709,108990.0,108980.0,0.18351991]
[1756577005797,0.34279475,108990.0,108980.0,0.43025992]
[1756577006961,0.34279475,108990.0,108980.0,0.43225992]
[1756577007314,0.34682399,108990.0,108980.0,0.43225992]
[1756577007531,0.34682399,108990.0,108980.0,0.43425992]
[1756577007732,0.35001399,108990.0,108980.0,0.43425992]
[1756577008311,0.35001399,108990.0,108980.0,0.50481992]
[1756577008874,0.00526766,108990.0,108980.0,0.50481992]
[1756577009078,0.35001399,108990.0,108980.0,0.50481992]
[1756577010760,0.00526766,108990.0,108980.0,0.50697992]
[1756577010917,0.34479399,108990.0,108980.0,0.50697992]
[1756577011712,4.766e-05,108990.0,108980.0,0.50697992]
[1756577014170,0.00323766,108990.0,108980.0,0.50697992]
[1756577014586,4.766e-05,108990.0,108980.0,0.50697992]
[1756577016379,0.00207766,108990.0,108980.0,0.50697992]
[1756577016594,0.00526766,108990.0,108980.0,0.50697992]
[1756577022297,0.35001399,108990.0,108980.0,0.50697992]
[1756577024889,0.35001399,108990.0,108980.0,0.35105992]
[1756577025063,0.35001399,108990.0,108980.0,0.50481992]
[1756577025831,0.37759999,108990.0,108980.0,0.50481992]
[1756577034764,0.03285366,108990.0,108980.0,0.50481992]
[1756577034971,0.37759999,108990.0,108980.0,0.50481992]
[1756577036792,0.37759999,108990.0,108980.0,0.50690992]
[1756577038529,0.37237999,108990.0,108980.0,0.50690992]
[1756577038952,0.02763366,108990.0,108980.0,0.50690992]
[1756577039377,0.02763366,108990.0,108980.0,0.85165625]
[1756577040636,0.02763366,108990.0,108980.0,1.07221625]
[1756577042128,4.766e-05,108990.0,108980.0,1.07221625]
[1756577043263,0.00519766,108990.0,108980.0,0.72742992]
[1756577043470,0.34994399,108990.0,108980.0,0.72533992]
[1756577044057,0.34994399,108990.0,108980.0,0.76732229]
[1756577045414,0.34994399,108990.0,108980.0,0.54676229]
[1756577051239,0.34994399,108990.0,108980.0,0.39304229]
[1756577051528,0.34994399,108990.0,108980.0,0.54676229]
[1756577055115,0.34994399,108990.0,108980.0,0.39304229]
[1756577055317,0.34994399,108990.0,108980.0,0.54676229]
[1756577057548,0.34994399,108990.0,108980.0,0.39304229]
[1756577057747,0.34994399,108990.0,108980.0,0.54676229]
[1756577061808,0.34994399,108990.0,108980.0,0.54872229]
[1756577062955,0.34994399,108990.0,108980.0,0.50673992]
[1756577063211,0.34994399,108990.0,108980.0,0.57292553]
[1756577067845,0.00519766,108990.0,108980.0,0.57292553]
[1756577068244,4.766e-05,108990.0,108980.0,0.57292553]
[1756577069985,0.34479399,108990.0,108980.0,0.57292553]
[1756577071599,4.766e-05,108990.0,108980.0,0.57292553]
[1756577071732,4.766e-05,108990.0,108980.0,0.91767186]
[1756577073369,4.766e-05,108990.0,108980.0,0.92064186]
[1756577074160,4.766e-05,108990.0,108980.0,0.94158068]
[1756577074957,4.766e-05,108990.0,108980.0,1.31391201]
[1756577075623,4.766e-05,108990.0,108980.0,0.96916568]
[1756577076292,4.766e-05,108990.0,108980.0,0.81544568]
[1756577076523,4.766e-05,108990.0,108980.0,0.96912568]
[1756577080477,4.766e-05,108990.0,108980.0,1.31387201]
[1756577080705,4.766e-05,108990.0,108980.0,0.62437935]
[1756577080980,4.766e-05,108990.0,108980.0,0.96912568]
[1756577083289,4.766e-05,108990.0,108980.0,1.31387201]
[1756577085083,4.766e-05,108990.0,108980.0,0.96912568]
[1756577088308,4.766e-05,108990.0,108980.0,0.96615568]
[1756577089321,4.766e-05,108990.0,108980.0,1.00649249]
[1756577093660,0.00204766,108990.0,108980.0,0.50806616]
[1756577093870,0.00204766,108990.0,108980.0,1.00645249]
[1756577094256,0.00525766,108990.0,108980.0,1.00445249]
[1756577096290,0.00525766,108990.0,108980.0,1.00643249]
[1756577097294,0.00525766,108990.0,108980.0,0.66168616]
[1756577097495,0.00525766,108990.0,108980.0,1.00643249]
[1756577099431,0.00525766,108990.0,108980.0,0.85283249]
[1756577099799,0.00525766,108990.0,108980.0,1.00643249]
[1756577103005,0.00525766,108990.0,108980.0,0.96609568]
[1756577103475,0.00525766,108990.0,108980.0,1.18661568]
[1756577104027,0.00525766,108990.0,108980.0,1.22879651]
[1756577106612,0.35000399,108990.0,108980.0,0.72847018]
[1756577107040,0.35000399,108990.0,108980.0,0.88207018]
[1756577107808,0.00525766,108990.0,108980.0,0.88207018]
[1756577110674,0.35000399,108990.0,108980.0,0.88207018]
[1756577110883,0.00525766,108990.0,108980.0,1.22879651]
[1756577112822,0.00525766,108990.0,108980.0,0.88405018]
[1756577113029,0.00525766,108990.0,108980.0,1.22879651]
[1756577113227,4.766e-05,108990.0,108980.0,1.22879651]
[1756577113391,0.00325766,108990.0,108980.0,1.22879651]
[1756577113603,0.00525766,108990.0,108980.0,1.22879651]
[1756577115643,0.00525766,108990.0,108980.0,0.88405018]
[1756577121012,4.766e-05,108990.0,108980.0,1.22879651]
[1756577123963,4.766e-05,108990.0,108980.0,1.00827651]
[1756577127940,4.766e-05,108990.0,108980.0,0.96609568]
[1756577129762,4.766e-05,108990.0,108980.0,0.81249568]
[1756577129960,4.766e-05,108990.0,108980.0,0.96605568]
[1756577132172,4.766e-05,108990.0,108980.0,0.81249568]
[1756577132338,0.00199766,108990.0,108980.0,0.96605568]
[1756577132540,0.00523766,108990.0,108980.0,0.96601568]
[1756577135245,0.00523766,108990.0,108980.0,0.81249568]
[1756577135366,0.00523766,108990.0,108980.0,0.96601568]
[1756577137651,0.00523766,108990.0,108980.0,0.81249568]
[1756577137833,0.00523766,108990.0,108980.0,0.96601568]
[1756577141616,4.766e-05,108990.0,108980.0,0.96601568]
[1756577155715,0.00518766,108990.0,108980.0,0.96601568]
[1756577160895,4.766e-05,108990.0,108980.0,0.96601568]
[1756577164171,4.766e-05,108990.0,108980.0,1.00656335]
[1756577173810,4.766e-05,108990.0,108980.0,0.85304335]
[1756577174101,0.00518766,108990.0,108980.0,1.00648335]
[1756577176288,4.766e-05,108990.0,108980.0,1.00648335]
[1756577178348,4.766e-05,108990.0,108980.0,0.66173702]
[1756577178550,4.766e-05,108990.0,108980.0,1.00648335]
[1756577178993,0.00518766,108990.0,108980.0,1.00648335]
[1756577181003,4.766e-05,108990.0,108980.0,1.00648335]
[1756577183126,4.766e-05,108990.0,108980.0,0.96593568]
[1756577183341,0.00521766,108990.0,108980.0,0.96589568]
[1756577183785,0.34996399,108990.0,108980.0,0.62114935]
[1756577184262,0.00521766,108990.0,108980.0,0.96589568]
[1756577185365,4.766e-05,108990.0,108980.0,0.96589568]
[1756577190182,4.766e-05,108990.0,108980.0,0.62114935]
[1756577190479,4.766e-05,108990.0,108980.0,0.96589568]
[1756577197503,4.766e-05,108990.0,108980.0,0.96883568]
[1756577197952,4.766e-05,108990.0,108980.0,0.96589568]
[1756577204374,4.766e-05,108990.0,108980.0,1.18641568]
[1756577208210,4.766e-05,108990.0,108980.0,0.68826935]
[1756577208418,0.00521766,108990.0,108980.0,1.18637568]
[1756577209001,0.00521766,108990.0,108980.0,1.03301568]
[1756577209188,0.00521766,108990.0,108980.0,0.96585568]
[1756577210021,0.00521766,108990.0,108980.0,0.81249568]
[1756577210220,0.34996399,108990.0,108980.0,0.46576935]
[1756577210490,0.34996399,108990.0,108980.0,0.61912935]
[1756577214810,0.00521766,108990.0,108980.0,0.62117935]
[1756577217296,0.00521766,108990.0,108980.0,0.46781935]